fUST/lending_fUST_20250430
["ID","MTS","AMOUNT","RATE_DAILY","PERIOD"]
[359411135,1745994640575,-500.0,0.0003097,5]
[359411136,1745994640586,-300.0,0.0003097,5]
[359411137,1745994640596,-400.0,0.0003097,5]
[359411138,1745994640607,-500.0,0.0003097,5]
[359411139,1745994640618,-400.0,0.0003097,5]
[359411140,1745994640629,-500.0,0.0003097,5]
[359411141,1745994640639,-400.0,0.0003097,5]
[359411142,1745994640649,-400.0,0.0003097,5]
[359411143,1745994640665,-400.0,0.0003097,5]
[359411144,1745994640675,-500.0,0.0003097,5]
[359411145,1745994640684,-500.0,0.0003097,5]
[359411146,1745994640811,-400.0,0.0003097,5]
[359411147,1745994640822,-391.94146896,0.0003097,5]
[359411148,1745994640831,-400.0,0.0003097,5]
[359411149,1745994640840,-400.0,0.0003097,5]
[359411150,1745994640849,-400.0,0.0003097,5]
[359411151,1745994640858,-400.0,0.0003097,5]
[359411152,1745994640868,-546.65669686,0.0003097,5]
[359411153,1745994640877,-400.0,0.0003097,5]
[359411154,1745994640887,-400.0,0.0003097,5]
[359411155,1745994640896,-502.54801393,0.0003097,5]
[359411156,1745994640906,-400.0,0.0003097,5]
[359411157,1745994640915,-400.0,0.0003097,5]
[359411158,1745994640925,-501.02422925,0.0003097,5]
[359411159,1745994640934,-501.43115037,0.0003097,5]
[359411160,1745994640944,-400.0,0.0003097,5]
[359411161,1745994640953,-400.0,0.0003097,5]
[359411162,1745994640962,-400.0,0.0003097,5]
[359411163,1745994640972,-400.0,0.0003097,5]
[359411164,1745994640981,-172.61749983,0.0003097,5]
[359411166,1745994640990,-400.0,0.0003097,5]
[359411168,1745994641000,-219.10349204,0.0003097,5]
[359411169,1745994641009,-400.0,0.0003097,5]
[359411170,1745994641019,-506.27089494,0.0003097,5]
[359411171,1745994641028,-400.0,0.0003097,5]
[359411172,1745994641037,-501.91085435,0.0003097,5]
[359411173,1745994641047,-502.13790813,0.0003097,5]
[359411174,1745994641057,-400.0,0.0003097,5]
[359411175,1745994641066,-430.54,0.0003097,5]
[359411176,1745994641076,-400.0,0.0003097,5]
[359411177,1745994641085,-400.0,0.0003097,5]
[359411178,1745994641095,-154.04206309,0.0003097,5]
[359411179,1745994641104,-400.0,0.0003097,5]
[359411180,1745994641114,-400.0,0.0003097,5]
[359411181,1745994641123,-400.0,0.0003097,5]
[359411182,1745994641132,-400.0,0.0003097,5]
[359411183,1745994641142,-400.0,0.0003097,5]
[359411184,1745994641151,-400.0,0.0003097,5]
[359411185,1745994641161,-500.0,0.0003097,5]
[359411186,1745994641170,-204.19579695,0.0003097,5]
[359411187,1745994641179,-504.14121411,0.0003097,5]
[359411188,1745994641189,-444.15,0.0003097,5]
[359411189,1745994641198,-400.0,0.0003097,5]
[359411190,1745994641208,-505.8294253,0.0003097,5]
[359411191,1745994641218,-400.0,0.0003097,5]
[359411192,1745994641227,-400.0,0.0003097,5]
[359411193,1745994641236,-277.02641894,0.0003097,5]
[359411194,1745994641246,-400.0,0.0003097,5]
[359411195,1745994641256,-500.92263608,0.0003097,5]
[359411196,1745994641265,-400.0,0.0003097,5]
[359411197,1745994641275,-400.0,0.0003097,5]
[359411198,1745994641284,-400.0,0.0003097,5]
[359411199,1745994641294,-500.0,0.0003097,5]
[359411200,1745994641303,-416.97,0.0003097,5]
[359411201,1745994641313,-422.33,0.0003097,5]
[359411202,1745994641323,-400.0,0.0003097,5]
[359411203,1745994641333,-400.0,0.0003097,5]
[359411205,1745994641343,-400.0,0.0003097,5]
[359411206,1745994641352,-504.00355408,0.0003097,5]
[359411207,1745994641362,-400.0,0.0003097,5]
[359411208,1745994641375,-400.0,0.0003097,5]
[359411209,1745994641384,-400.0,0.0003097,5]
[359411210,1745994641394,-400.0,0.0003097,5]
[359411211,1745994641403,-508.31748357,0.0003097,5]
[359411212,1745994641412,-502.51144267,0.0003097,5]
[359411213,1745994641423,-400.0,0.0003097,5]
[359411214,1745994641432,-400.0,0.0003097,5]
[359411215,1745994641443,-400.0,0.0003097,5]
[359411216,1745994641453,-400.0,0.0003097,5]
[359411217,1745994641463,-400.0,0.0003097,5]
[359411218,1745994641473,-400.0,0.0003097,5]
[359411219,1745994641483,-400.0,0.0003097,5]
[359411220,1745994641493,-400.0,0.0003097,5]
[359411221,1745994641503,-434.13706759,0.0003097,5]
[359411222,1745994641513,-400.0,0.0003097,5]
[359411223,1745994641524,-502.79949979,0.0003097,5]
[359411224,1745994641533,-400.0,0.0003097,5]
[359411225,1745994641544,-520.25501996,0.0003097,5]
[359411226,1745994641554,-400.0,0.0003097,5]
[359411227,1745994641563,-400.0,0.0003097,5]
[359411228,1745994641573,-400.0,0.0003097,5]
[359411229,1745994641583,-400.0,0.0003097,5]
[359411230,1745994641592,-400.0,0.0003097,5]
[359411231,1745994641601,-501.06772822,0.0003097,5]
[359411232,1745994641611,-503.1572199,0.0003097,5]
[359411233,1745994641620,-400.0,0.0003097,5]
[359411234,1745994641629,-302.94783816,0.0003097,5]
[359411235,1745994641639,-506.23838175,0.0003097,5]
[359411236,1745994641649,-400.0,0.0003097,5]
[359411237,1745994641658,-400.0,0.0003097,5]
[359411238,1745994641668,-400.0,0.0003097,5]
[359411239,1745994641678,-400.0,0.0003097,5]
[359411240,1745994641687,-375.18678572,0.0003097,5]
[359411241,1745994641697,-528.04361022,0.0003097,5]
[359411242,1745994641706,-400.0,0.0003097,5]
[359411243,1745994641715,-512.57211079,0.0003097,5]
[359411244,1745994641725,-400.0,0.0003097,5]
[359411245,1745994641735,-470.42,0.0003097,5]
[359411246,1745994641744,-400.0,0.0003097,5]
[359411247,1745994641754,-400.0,0.0003097,5]
[359411248,1745994641763,-400.0,0.0003097,5]
[359411249,1745994641773,-402.67812137,0.0003097,5]
[359411250,1745994641783,-400.0,0.0003097,5]
[359411251,1745994641793,-400.0,0.0003097,5]
[359411252,1745994641802,-178.24387212,0.0003097,5]
[359411253,1745994641812,-503.10934431,0.0003097,5]
[359411254,1745994641822,-855.13,0.0003097,5]
[359411255,1745994641832,-400.0,0.0003097,5]
[359411256,1745994641842,-502.50689988,0.0003097,5]
[359411257,1745994641852,-495.61,0.0003097,5]
[359411258,1745994641861,-400.0,0.0003097,5]
[359411259,1745994641871,-504.03160662,0.0003097,5]
[359411260,1745994641883,-1068.18,0.0003097,5]
[359411261,1745994641893,-400.0,0.0003097,5]
[359411262,1745994641904,-400.0,0.0003097,5]
[359411263,1745994641913,-502.93821574,0.0003097,5]
[359411264,1745994641923,-400.0,0.0003097,5]
[359411265,1745994641938,-400.0,0.0003097,5]
[359411266,1745994641954,-400.0,0.0003097,5]
[359411267,1745994641968,-802.82,0.0003097,5]
[359411268,1745994641981,-501.15568646,0.0003097,5]
[359411269,1745994641996,-400.0,0.0003097,5]
[359411270,1745994642009,-514.48883896,0.0003097,5]
[359411271,1745994642023,-400.0,0.0003097,5]
[359411272,1745994642037,-400.0,0.0003097,5]
[359411273,1745994642052,-400.0,0.0003097,5]
[359411274,1745994642066,-400.0,0.0003097,5]
[359411275,1745994642081,-400.0,0.0003097,5]
[359411276,1745994642095,-400.0,0.0003097,5]
[359411277,1745994642107,-400.0,0.0003097,5]
[359411278,1745994642120,-158.70155147,0.0003097,5]
[359411279,1745994642133,-649.46,0.0003097,5]
[359411280,1745994642146,-400.0,0.0003097,5]
[359411281,1745994642159,-400.0,0.0003097,5]
[359411282,1745994642172,-502.66866983,0.0003097,5]
[359411283,1745994642183,-400.0,0.0003097,5]
[359411284,1745994642196,-506.68281983,0.0003097,5]
[359411285,1745994642208,-400.0,0.0003097,5]
[359411286,1745994642222,-400.0,0.0003097,5]
[359411287,1745994642235,-400.0,0.0003097,5]
[359411288,1745994642248,-400.0,0.0003097,5]
[359411289,1745994642262,-374.83588766,0.0003097,5]
[359411290,1745994642278,-400.0,0.0003097,5]
[359411291,1745994642293,-400.0,0.0003097,5]
[359411292,1745994642305,-506.18746173,0.0003097,5]
[359411293,1745994642317,-400.0,0.0003097,5]
[359411294,1745994642327,-400.0,0.0003097,5]
[359411295,1745994642340,-400.0,0.0003097,5]
[359411296,1745994642354,-505.90057558,0.0003097,5]
[359411297,1745994642368,-400.0,0.0003097,5]
[359411298,1745994642383,-400.0,0.0003097,5]
[359411299,1745994642395,-234.37998623,0.0003097,5]
[359411300,1745994642407,-400.0,0.0003097,5]
[359411301,1745994642421,-400.0,0.0003097,5]
[359411302,1745994642435,-1002.20476624,0.0003097,2]
[359411303,1745994642446,-400.0,0.0003097,5]
[359411304,1745994642457,-400.0,0.0003097,5]
[359411305,1745994642471,-400.0,0.0003097,5]
[359411306,1745994642484,-400.0,0.0003097,5]
[359411307,1745994642497,-400.0,0.0003097,5]
[359411308,1745994642510,-400.0,0.0003097,5]
[359411309,1745994642523,-400.0,0.0003097,5]
[359411310,1745994642535,-304.23529294,0.0003097,5]
[359411311,1745994642549,-506.54369344,0.0003097,5]
[359411312,1745994642561,-502.219711,0.0003097,5]
[359411313,1745994642574,-204.60255064,0.0003097,5]
[359411314,1745994642585,-1188.93,0.0003097,5]
[359411315,1745994642598,-502.34280832,0.0003097,5]
[359411316,1745994642610,-400.0,0.0003097,5]
[359411317,1745994642622,-400.0,0.0003097,5]
[359411318,1745994642634,-400.0,0.0003097,5]
[359411319,1745994642646,-400.0,0.0003097,5]
[359411320,1745994642658,-400.0,0.0003097,5]
[359411321,1745994642669,-400.0,0.0003097,5]
[359411322,1745994642680,-416.37,0.0003097,5]
[359411323,1745994642692,-400.0,0.0003097,5]
[359411324,1745994642703,-504.4718993,0.0003097,5]
[359411325,1745994642715,-400.0,0.0003097,5]
[359411326,1745994642727,-400.0,0.0003097,5]
[359411327,1745994642739,-400.0,0.0003097,5]
[359411328,1745994642750,-400.0,0.0003097,5]
[359411329,1745994642761,-400.0,0.0003097,5]
[359411330,1745994642776,-400.0,0.0003097,2]
[359411331,1745994642788,-400.0,0.0003097,5]
[359411332,1745994642799,-400.0,0.0003097,5]
[359411333,1745994642811,-400.0,0.0003097,5]
[359411334,1745994642822,-412.56130031,0.0003097,5]
[359411335,1745994642834,-400.0,0.0003097,5]
[359411336,1745994642845,-400.0,0.0003097,5]
[359411337,1745994642856,-400.0,0.0003097,5]
[359411338,1745994642866,-504.40917027,0.0003097,5]
[359411339,1745994642878,-433.47,0.0003097,5]
[359411340,1745994642889,-400.0,0.0003097,5]
[359411341,1745994642901,-400.0,0.0003097,5]
[359411342,1745994642912,-400.0,0.0003097,5]
[359411343,1745994642924,-400.0,0.0003097,5]
[359411344,1745994642935,-501.89761919,0.0003097,5]
[359411345,1745994642946,-638.47,0.0003097,5]
[359411346,1745994642958,-400.0,0.0003097,5]
[359411347,1745994642970,-400.0,0.0003097,5]
[359411348,1745994642982,-400.0,0.0003097,5]
[359411349,1745994642993,-400.0,0.0003097,5]
[359411350,1745994643005,-400.0,0.0003097,5]
[359411351,1745994643018,-648.33,0.0003097,5]
[359411352,1745994643030,-413.2,0.0003097,5]
[359411353,1745994643042,-400.0,0.0003097,5]
[359411354,1745994643054,-507.05883478,0.0003097,5]
[359411355,1745994643066,-400.0,0.0003097,5]
[359411357,1745994643077,-294.79538002,0.0003097,5]
[359411358,1745994643089,-449.11,0.0003097,5]
[359411359,1745994643100,-816.25,0.0003097,5]
[359411360,1745994643112,-1948.69,0.0003097,5]
[359411361,1745994643123,-400.0,0.0003097,5]
[359411362,1745994643135,-511.66541682,0.0003097,5]
[359411363,1745994643147,-507.19246334,0.0003097,5]
[359411364,1745994643159,-400.0,0.0003097,5]
[359411365,1745994643171,-500.91484984,0.0003097,5]
[359411366,1745994643184,-400.0,0.0003097,5]
[359411367,1745994643193,-512.23,0.0003097,5]
[359411368,1745994643203,-400.0,0.0003097,5]
[359411369,1745994643212,-190.88096192,0.0003097,5]
[359411370,1745994643222,-978.58,0.0003097,5]
[359411371,1745994643232,-400.0,0.0003097,5]
[359411372,1745994643241,-400.0,0.0003097,5]
[359411373,1745994643251,-729.42,0.0003097,5]
[359411374,1745994643261,-1099.03,0.0003097,5]
[359411375,1745994643270,-400.0,0.0003097,5]
[359411376,1745994643280,-542.36,0.0003097,5]
[359411377,1745994643289,-400.0,0.0003097,5]
[359411378,1745994643299,-400.0,0.0003097,5]
[359411379,1745994643309,-400.0,0.0003097,5]
[359411381,1745994643319,-454.88,0.0003097,5]
[359411397,1745994643513,-541.06,0.0003097,5]
[359411398,1745994643533,-400.0,0.0003097,5]
[359411399,1745994643544,-2497.03,0.0003097,5]
[359411400,1745994643553,-400.0,0.0003097,5]
[359411401,1745994643561,-500.0,0.0003097,5]
[359411402,1745994643570,-400.0,0.0003097,5]
[359411403,1745994643579,-500.0,0.0003097,30]
[359411404,1745994643587,-401.52681901,0.0003097,5]
[359411405,1745994643595,-400.0,0.0003097,5]
[359411406,1745994643604,-400.0,0.0003097,5]
[359411407,1745994643612,-400.0,0.0003097,5]
[359411408,1745994643620,-400.0,0.0003097,5]
[359411409,1745994643629,-400.0,0.0003097,5]
[359411410,1745994643638,-400.0,0.0003097,5]
[359411411,1745994643646,-522.29543877,0.0003097,5]
[359411412,1745994643655,-401.61536876,0.0003097,5]
[359411413,1745994643663,-400.0,0.0003097,5]
[359411414,1745994643672,-3487.38,0.0003097,5]
[359411415,1745994643681,-500.0,0.0003097,5]
[359411416,1745994643689,-400.0,0.0003097,5]
[359411417,1745994643699,-400.0,0.0003097,5]
[359411418,1745994643708,-400.0,0.0003097,5]
[359411419,1745994643717,-500.0,0.0003097,5]
[359411420,1745994643727,-400.0,0.0003097,5]
[359411422,1745994643738,-500.0,0.0003097,5]
[359411423,1745994643747,-400.0,0.0003097,5]
[359411424,1745994643759,-503.31471588,0.0003097,5]
[359411425,1745994643768,-515.13846602,0.0003097,5]
[359411426,1745994643777,-400.0,0.0003097,5]
[359411427,1745994643786,-400.0,0.0003097,5]
[359411428,1745994643794,-187.11470148,0.0003097,5]
[359411429,1745994643802,-544.36,0.0003097,5]
[359411430,1745994643811,-501.10253242,0.0003097,5]
[359411431,1745994643821,-400.0,0.0003097,5]
[359411432,1745994643830,-479.61,0.0003097,5]
[359411433,1745994643839,-400.0,0.0003097,5]
[359411434,1745994643848,-400.0,0.0003097,5]
[359411435,1745994643858,-693.12,0.0003097,5]
[359411436,1745994643868,-400.0,0.0003097,5]
[359411437,1745994643877,-501.90950057,0.0003097,5]
[359411438,1745994643887,-1336.93,0.0003097,5]
[359411439,1745994643895,-501.51848821,0.0003097,5]
[359411440,1745994643904,-436.37,0.0003097,5]
[359411441,1745994643913,-400.0,0.0003097,5]
[359411442,1745994643923,-501.42649316,0.0003097,5]
[359411443,1745994643932,-518.46173525,0.0003097,5]
[359411445,1745994643942,-496.2,0.0003097,5]
[359411446,1745994643951,-1406.68,0.0003097,5]
[359411447,1745994643961,-1395.72,0.0003097,5]
[359411448,1745994643970,-400.0,0.0003097,5]
[359411449,1745994643979,-400.0,0.0003097,5]
[359411450,1745994643989,-400.0,0.0003097,5]
[359411451,1745994643998,-517.78,0.0003097,5]
[359411452,1745994644007,-509.16546418,0.0003097,5]
[359411453,1745994644016,-400.0,0.0003097,5]
[359411454,1745994644027,-339.01574218,0.0003097,5]
[359411455,1745994644036,-503.62495168,0.0003097,5]
[359411456,1745994644046,-500.0,0.0003097,5]
[359411457,1745994644055,-500.0,0.0003097,5]
[359411458,1745994644065,-400.0,0.0003097,5]
[359411459,1745994644075,-790.84,0.0003097,5]
[359411460,1745994644085,-512.50566395,0.0003097,5]
[359411461,1745994644095,-414.55,0.0003097,5]
[359411462,1745994644103,-400.0,0.0003097,5]
[359411463,1745994644112,-500.0,0.0003097,5]
[359411464,1745994644120,-1963.84,0.0003097,5]
[359411465,1745994644129,-500.0,0.0003097,5]
[359411466,1745994644138,-379.77267593,0.0003097,5]
[359411467,1745994644148,-400.0,0.0003097,5]
[359411468,1745994644157,-497.8,0.0003097,5]
[359411469,1745994644168,-1875.05,0.0003097,5]
[359411470,1745994644177,-483.38,0.0003097,5]
[359411471,1745994644187,-400.0,0.0003097,5]
[359411472,1745994644196,-400.0,0.0003097,5]
[359411473,1745994644206,-400.0,0.0003097,5]
[359411474,1745994644215,-1338.55,0.0003097,5]
[359411475,1745994644224,-400.0,0.0003097,5]
[359411476,1745994644234,-400.0,0.0003097,5]
[359411477,1745994644244,-201.15109827,0.0003097,5]
[359411478,1745994644253,-1055.13,0.0003097,5]
[359411479,1745994644263,-501.19973974,0.0003097,5]
[359411480,1745994644272,-400.0,0.0003097,5]
[359411481,1745994644282,-400.0,0.0003097,5]
[359411482,1745994644291,-499.16,0.0003097,5]
[359411483,1745994644301,-1501.56,0.0003097,5]
[359411484,1745994644311,-1501.56,0.0003097,5]
[359411485,1745994644321,-1501.56,0.0003097,5]
[359411486,1745994644331,-1501.56,0.0003097,5]
[359411487,1745994644340,-1501.62336123,0.0003097,5]
[359411488,1745994644350,-400.0,0.0003097,5]
[359411489,1745994644360,-527.46,0.0003097,5]
[359411490,1745994644371,-400.0,0.0003097,5]
[359411491,1745994644382,-1508.4,0.0003097,5]
[359411492,1745994644392,-2189.17,0.0003097,5]
[359411493,1745994644401,-2189.17,0.0003097,5]
[359411494,1745994644411,-2189.17,0.0003097,5]
[359411495,1745994644420,-2189.17,0.0003097,5]
[359411496,1745994644429,-2189.27993048,0.0003097,5]
[359411497,1745994644439,-400.0,0.0003097,5]
[359411498,1745994644450,-400.0,0.0003097,5]
[359411499,1745994644459,-400.0,0.0003097,5]
[359411500,1745994644468,-5420.82,0.0003097,5]
[359411501,1745994644476,-400.0,0.0003097,5]
[359411502,1745994644484,-680.03,0.0003097,5]
[359411503,1745994644492,-400.0,0.0003097,5]
[359411504,1745994644501,-400.0,0.0003097,5]
[359411505,1745994644511,-3042.41,0.0003097,5]
[359411506,1745994644521,-400.0,0.0003097,5]
[359411507,1745994644531,-400.0,0.0003097,5]
[359411508,1745994644541,-400.0,0.0003097,5]
[359411509,1745994644551,-1045.1,0.0003097,5]
[359411510,1745994644561,-400.0,0.0003097,5]
[359411511,1745994644572,-400.0,0.0003097,5]
[359411512,1745994644582,-400.0,0.0003097,5]
[359411513,1745994644591,-531.01723028,0.0003097,5]
[359411514,1745994644601,-400.0,0.0003097,5]
[359411515,1745994644611,-507.92966408,0.0003097,5]
[359411516,1745994644621,-719.3,0.0003097,5]
[359411517,1745994644631,-400.0,0.0003097,5]
[359411518,1745994644640,-583.35,0.0003097,5]
[359411519,1745994644650,-400.0,0.0003097,5]
[359411520,1745994644660,-400.0,0.0003097,5]
[359411521,1745994644670,-424.45,0.0003097,5]
[359411522,1745994644679,-424.45,0.0003097,5]
[359411523,1745994644688,-424.45,0.0003097,5]
[359411524,1745994644698,-400.0,0.0003097,5]
[359411525,1745994644707,-424.45,0.0003097,5]
[359411526,1745994644717,-424.54999109,0.0003097,5]
[359411527,1745994644727,-789.67,0.0003097,5]
[359411528,1745994644738,-400.0,0.0003097,5]
[359411529,1745994644748,-1340.07,0.0003097,5]
[359411530,1745994644758,-441.3,0.0003097,5]
[359411531,1745994644768,-400.0,0.0003097,5]
[359411532,1745994644779,-441.3,0.0003097,5]
[359411533,1745994644789,-441.3,0.0003097,5]
[359411534,1745994644799,-441.3,0.0003097,5]
[359411535,1745994644808,-441.47779911,0.0003097,5]
[359411536,1745994644818,-400.0,0.0003097,5]
[359411537,1745994644827,-541.62297865,0.0003097,5]
[359411538,1745994644836,-400.0,0.0003097,5]
[359411539,1745994644846,-315.105946,0.0003097,5]
[359411540,1745994644856,-400.0,0.0003097,5]
[359411541,1745994644865,-868.46,0.0003097,5]
[359411542,1745994644875,-405.12497356,0.0003097,5]
[359411543,1745994644884,-283.00899742,0.0003097,5]
[359411544,1745994644894,-381.6784248,0.00030973,5]
[359411545,1745994644904,-500.0,0.00030973,5]
[359411546,1745994644913,-500.0,0.00030973,5]
[359411547,1745994644923,-500.0,0.00030973,5]
[359411548,1745994644933,-500.0,0.00030973,5]
[359411549,1745994644943,-502.28692997,0.00030973,5]
[359411550,1745994644952,-300.0,0.00030973,5]
[359411551,1745994644962,-186.31628183,0.00030973,5]
[359411552,1745994644971,-500.88268333,0.00030973,3]
[359411553,1745994644980,-500.0,0.00030973,5]
[359411554,1745994644990,-500.0,0.00030973,5]
[359411555,1745994645000,-500.0,0.00030973,5]
[359411556,1745994645009,-594.35388961,0.00030983,2]
[359411557,1745994645020,-151.0,0.00030983,2]
[359411558,1745994645029,-207.4,0.00030983,2]
[359411559,1745994645039,-444.21078824,0.00031136,2]
[359411560,1745994645048,-444.21078824,0.00031404,2]
[359411561,1745994645058,-151.0,0.000316,10]
[359411562,1745994645068,-444.21078824,0.00031671,2]
[359411563,1745994645078,-151.0,0.000317,16]
[359411564,1745994645088,-151.0,0.000318,19]
[359411565,1745994645097,-264.59022203,0.00031874,2]
[359411566,1745994645107,-151.0,0.000319,20]
[359411567,1745994645118,-1680.0,0.00031905,3]
[359411568,1745994645127,-444.21078824,0.00031939,2]
[359411569,1745994645137,-400.0,0.00031944,5]
[359411570,1745994645147,-400.0,0.00031944,5]
[359411571,1745994645157,-1963.84,0.00031944,5]
[359411572,1745994645167,-436.69731326,0.00031944,5]
[359411573,1745994645177,-5420.82,0.00031944,5]
[359411574,1745994645187,-1045.1,0.00031944,5]
[359411575,1745994645196,-583.35,0.00031944,5]
[359411576,1745994645205,-1406.68,0.00031948,5]
[359411577,1745994645214,-1406.68,0.00031948,5]
[359411578,1745994645223,-517.78,0.00031948,5]
[359411579,1745994645233,-517.78,0.00031948,5]
[359411580,1745994645243,-790.84,0.00031948,5]
[359411581,1745994645253,-790.84,0.00031948,5]
[359411582,1745994645263,-1338.55,0.00031948,5]
[359411583,1745994645273,-1338.55,0.00031948,5]
[359411584,1745994645283,-1508.4,0.00031948,5]
[359411585,1745994645293,-1508.4,0.00031948,5]
[359411586,1745994645303,-680.03,0.00031948,5]
[359411587,1745994645313,-680.03,0.00031948,5]
[359411588,1745994645323,-719.3,0.00031948,5]
[359411589,1745994645333,-719.3,0.00031948,5]
[359411590,1745994645343,-400.0,0.00031948,5]
[359411591,1745994645352,-400.0,0.00031948,5]
[359411592,1745994645363,-1340.07,0.00031948,5]
[359411593,1745994645376,-1340.07,0.00031948,5]
[359411594,1745994645386,-151.0,0.00031948,7]
[359411595,1745994645395,-400.0,0.00031948,5]
[359411596,1745994645405,-400.0,0.00031948,5]
[359411597,1745994645415,-1406.68,0.00031958,5]
[359411598,1745994645424,-517.78,0.00031958,5]
[359411599,1745994645434,-790.84,0.00031958,5]
[359411600,1745994645444,-1338.55,0.00031958,5]
[359411601,1745994645455,-1508.4,0.00031958,5]
[359411602,1745994645465,-680.03,0.00031958,5]
[359411603,1745994645474,-719.3,0.00031958,5]
[359411604,1745994645484,-400.0,0.00031958,5]
[359411605,1745994645494,-1340.07,0.00031958,5]
[359411606,1745994645503,-400.0,0.00031958,5]
[359411607,1745994645513,-490.2,0.00031959,5]
[359411608,1745994645523,-400.0,0.00031959,5]
[359411609,1745994645532,-400.0,0.00031959,5]
[359411610,1745994645542,-430.54,0.00031959,5]
[359411611,1745994645552,-400.0,0.00031959,5]
[359411612,1745994645562,-444.15,0.00031959,5]
[359411613,1745994645572,-416.97,0.00031959,5]
[359411614,1745994645582,-400.0,0.00031959,5]
[359411615,1745994645592,-395.7984281,0.00031959,5]
[359411616,1745994645602,-400.0,0.00031959,5]
[359411617,1745994645611,-400.0,0.00031959,5]
[359411618,1745994645621,-400.0,0.00031959,5]
[359411619,1745994645630,-470.42,0.00031959,5]
[359411620,1745994645640,-855.13,0.00031959,5]
[359411621,1745994645649,-400.0,0.00031959,5]
[359411622,1745994645659,-495.61,0.00031959,5]
[359411623,1745994645669,-802.82,0.00031959,5]
[359411624,1745994645679,-400.0,0.00031959,5]
[359411625,1745994645688,-400.0,0.00031959,5]
[359411626,1745994645698,-400.0,0.00031959,5]
[359411627,1745994645708,-400.0,0.00031959,5]
[359411628,1745994645718,-400.0,0.00031959,5]
[359411629,1745994645726,-400.0,0.00031959,5]
[359411630,1745994645736,-400.0,0.00031959,5]
[359411631,1745994645745,-400.0,0.00031959,5]
[359411632,1745994645755,-1188.93,0.00031959,5]
[359411633,1745994645764,-400.0,0.00031959,5]
[359411634,1745994645775,-400.0,0.00031959,5]
[359411635,1745994645784,-416.37,0.00031959,5]
[359411636,1745994645794,-400.0,0.00031959,5]
[359411637,1745994645803,-433.47,0.00031959,5]
[359411638,1745994645812,-400.0,0.00031959,5]
[359411639,1745994645821,-638.47,0.00031959,5]
[359411640,1745994645830,-400.0,0.00031959,5]
[359411641,1745994645839,-648.33,0.00031959,5]
[359411642,1745994645848,-449.11,0.00031959,5]
[359411643,1745994645858,-369.76943341,0.00031959,5]
[359411644,1745994646787,-9491.78946428,0.00029461,2]
[359411645,1745994646800,-2954.3930974,0.00029461,2]
[359411648,1745994746205,-160.0,0.0002,3]
[359411735,1745995553133,-270.536272,0.00027397,2]
[359411736,1745995553155,-33.57771135,0.00028163,2]
[359411739,1745995627218,-178.69802165,0.00028163,2]
[359411740,1745995627277,-250.0,0.00029361,2]
[359411741,1745995627332,-1000.0,0.00029361,2]
[359411742,1745995627390,-1200.0,0.0002946,2]
[359411743,1745995627447,-14064.90288697,0.00029461,2]
[359411744,1745995631095,-3403.18403158,0.00029461,2]
[359411745,1745995645251,-747.52643692,0.00029461,2]
[359411746,1745995650096,-347.28340463,0.00029461,2]